bitfinex-derivatives/quotes_SOLF0:USTF0_20260118
["timestamp","ask_amount","ask_price","bid_price","bid_amount"]
[1768745750290,0.0453445,142.63,142.57,98.24]
[1768745750482,3.31111019,142.66,142.57,98.24]
[1768745750791,3.31111019,142.66,142.59,6.3144]
[1768745750980,3.31111019,142.7,142.58,98.2312]
[1768745751693,3.31111019,142.7,142.61,6.3133]
[1768745752187,3.31111019,142.7,142.62,6.3129]
[1768745752795,3.22576857,142.73,142.63,98.1977]
[1768745753289,3.22576857,142.73,142.62,98.2049]
[1768745753788,3.22576857,142.73,142.67,0.04820604]
[1768745754388,3.22576857,142.73,142.61,98.2085]
[1768745754584,3.2784972,142.71,142.59,98.2241]
[1768745754785,3.2784972,142.71,142.61,98.2135]
[1768745754988,3.22576857,142.71,142.62,6.3131]
[1768745755188,3.22576857,142.71,142.61,98.2105]
[1768745755491,3.22576857,142.74,142.65,6.3116]
[1768745756291,3.22576857,142.73,142.63,6.3126]
[1768745757794,0.0471185,142.69,142.64,6.3121]
[1768745758895,0.0471185,142.69,142.62,6.3132]
[1768745760294,3.27288707,142.69,142.62,6.3132]
[1768745760789,3.27288707,142.69,142.64,0.05345317]
[1768745760993,3.22576857,142.72,142.64,0.05345317]
[1768745761384,3.22576857,142.72,142.62,98.2017]
[1768745761590,3.22576857,142.75,142.65,98.1854]
[1768745761993,3.22576857,142.75,142.66,6.3112]
[1768745762492,3.22576857,142.75,142.69,0.0528572]
[1768745766700,6.3054,142.8,142.69,0.0528572]
[1768745766701,3.22576857,142.79,142.69,0.0528572]
[1768745767088,9.53186857,142.79,142.69,0.0528572]
[1768745767296,3.22576857,142.78,142.65,98.1825]
[1768745767802,0.047533,142.73,142.65,98.1825]
[1768745768602,0.047533,142.73,142.67,6.3108]
[1768745770304,3.27330157,142.73,142.65,6.3118]
[1768745770891,3.27330157,142.73,142.63,6.3127]
[1768745771092,3.27330157,142.73,142.59,98.2271]
[1768745771297,3.22576857,142.72,142.59,98.2271]
[1768745771500,3.22576857,142.7,142.59,6.3144]
[1768745771707,98.1495,142.71,142.59,6.3144]
[1768745771708,3.22576857,142.66,142.59,6.3144]
[1768745772005,3.22576857,142.66,142.57,6.3153]
[1768745772303,3.22576857,142.66,142.57,98.2391]
[1768745772697,0.0478793,142.63,142.57,98.2391]
[1768745773103,3.22576857,142.66,142.58,98.234]
[1768745773301,3.22576857,142.69,142.58,98.234]
[1768745774306,3.22576857,142.72,142.6,98.2201]
[1768745775601,3.22576857,142.71,142.61,6.3134]
[1768745775802,3.22576857,142.71,142.65,0.04560255]
[1768745777001,3.22576857,142.7,142.59,6.3144]
[1768745777400,3.27828326,142.69,142.59,6.3144]
[1768745777608,3.22576857,142.69,142.59,6.3144]
[1768745777813,3.22576857,142.69,142.59,98.2247]
[1768745778401,0.05144675,142.65,142.59,98.2247]
[1768745778711,3.22576857,142.69,142.59,98.2247]
[1768745778911,3.22576857,142.69,142.61,6.3135]
[1768745779106,3.22576857,142.69,142.61,6.36208497]
[1768745780412,3.22576857,142.69,142.61,0.04858497]
[1768745781116,3.22576857,142.65,142.61,0.04858497]
[1768745781517,3.22576857,142.65,142.57,6.3152]
[1768745782315,3.30001085,142.64,142.53,98.2676]
[1768745782904,3.30001085,142.64,142.54,98.2611]
[1768745783311,0.05137751,142.6,142.54,98.2611]
[1768745783813,0.05137751,142.6,142.58,0.0478696]
[1768745784514,3.30001085,142.64,142.58,0.0478696]
[1768745787006,3.30001085,142.61,142.54,6.3166]
[1768745787417,6.3127,142.64,142.53,98.2688]
[1768745787617,9.61271085,142.64,142.53,98.2688]
[1768745787919,3.30001085,142.64,142.56,6.3157]
[1768745788313,0.04505035,142.6,142.56,6.3157]
[1768745788614,3.30001085,142.64,142.59,0.04990561]
[1768745789221,3.30001085,142.64,142.54,6.3166]
[1768745790220,3.30001085,142.62,142.54,6.3166]
[1768745790607,3.34747689,142.6,142.52,162.71733849]
[1768745791721,3.34747689,142.6,142.52,156.39973849]
[1768745791920,3.34747689,142.6,142.43,205.25405457]
[1768745792221,3.34747689,142.6,142.44,255.18]
[1768745792523,3.30001085,142.57,142.48,6.3192]
[1768745792917,0.05391697,142.54,142.48,98.298]
[1768745793115,3.30001085,142.58,142.49,98.2962]
[1768745793613,3.30001085,142.58,142.51,6.3179]
[1768745794422,0.04568052,142.56,142.51,6.3179]
[1768745795818,3.30001085,142.61,142.53,6.3168]
[1768745797222,3.30001085,142.61,142.56,0.04498527]
[1768745799620,0.04919496,142.6,142.56,6.36068527]
[1768745799826,3.16886302,142.64,142.56,6.36068527]
[1768745800023,3.16886302,142.64,142.56,6.3157]
[1768745801023,3.16886302,142.64,142.59,0.04854612]
[1768745804323,3.16886302,142.67,142.59,0.04854612]
[1768745804829,3.16886302,142.67,142.58,98.2295]
[1768745805024,0.04591652,142.64,142.61,6.3135]
[1768745805329,0.04591652,142.64,142.62,0.04628423]
[1768745805633,3.16886302,142.69,142.62,0.04628423]
[1768745805634,9.47916302,142.69,142.62,0.04628423]
[1768745805931,3.16886302,142.68,142.62,0.04628423]
[1768745806616,3.16886302,142.68,142.58,98.2295]
[1768745806924,3.16886302,142.68,142.61,6.3135]
[1768745808024,3.16886302,142.68,142.63,0.0475664]
[1768745808727,0.04700848,142.67,142.63,0.0475664]
[1768745809828,3.2158715,142.67,142.59,6.3144]
[1768745810230,3.16886302,142.67,142.59,6.3144]
[1768745810428,3.16886302,142.67,142.6,6.314]
[1768745810631,3.16886302,142.67,142.58,98.2295]
[1768745811132,0.0517322,142.65,142.58,98.2295]
[1768745811931,0.0517322,142.65,142.61,6.3135]
[1768745812129,0.0517322,142.65,142.59,98.2248]
[1768745812834,0.0517322,142.65,142.62,6.3131]
[1768745813138,3.10036175,142.69,142.62,6.3131]
[1768745813433,3.10036175,142.69,142.62,6.36353037]
[1768745814529,3.10036175,142.69,142.62,0.05043037]
[1768745815830,3.15348575,142.67,142.62,0.05043037]
[1768745816225,3.15348575,142.67,142.61,6.3134]
[1768745816723,3.15348575,142.67,142.63,0.05187914]
[1768745817330,3.15348575,142.67,142.61,6.3134]
[1768745818439,3.15348575,142.67,142.58,98.2295]
[1768745818440,0.053124,142.67,142.6,98.2196]
[1768745818635,3.10036175,142.7,142.64,98.1917]
[1768745818844,3.10036175,142.77,142.64,98.1917]
[1768745819334,3.10036175,142.75,142.68,6.3104]
[1768745820231,3.10036175,142.74,142.65,6.3115]
[1768745820432,3.10036175,142.72,142.65,6.3115]
[1768745821330,3.10036175,142.72,142.62,98.2067]
[1768745821641,0.04688869,142.7,142.62,98.2067]
[1768745821941,0.04688869,142.7,142.63,98.196]
[1768745822140,3.10036175,142.74,142.66,98.1779]
[1768745823239,3.10036175,142.74,142.69,6.31]
[1768745823542,3.10036175,142.74,142.69,6.36303281]
[1768745823942,3.10036175,142.74,142.69,0.05303281]
[1768745829042,3.10036175,142.74,142.66,6.3113]
[1768745829437,3.10036175,142.72,142.66,6.3113]
[1768745831941,3.10036175,142.72,142.68,0.04752283]
[1768745834345,3.10036175,142.72,142.68,6.35802283]
[1768745835544,3.10036175,142.72,142.68,3.01776308]
[1768745835751,3.10036175,142.72,142.6,110.8482]
[1768745836253,3.10036175,142.72,142.6,98.2204]
[1768745836444,3.10036175,142.71,142.63,6.3127]
[1768745836950,0.04608865,142.68,142.63,6.3127]
[1768745837349,0.04608865,142.68,142.64,6.3123]
[1768745838250,3.1464504,142.68,142.62,6.3129]
[1768745838551,3.1464504,142.68,142.61,98.2126]
[1768745838941,3.1464504,142.68,142.63,6.3127]
[1768745840048,3.1464504,142.68,142.61,6.3135]
[1768745840443,3.10036175,142.68,142.61,6.3135]
[1768745840843,3.10036175,142.65,142.59,6.3144]
[1768745841446,3.10036175,142.65,142.61,6.3136]
[1768745841653,0.05350655,142.66,142.59,98.2261]
[1768745841845,3.10036175,142.68,142.59,98.2261]
[1768745842253,0.04801013,142.64,142.59,98.2261]
[1768745842753,0.04801013,142.64,142.62,6.3132]
[1768745842952,3.10036175,142.68,142.62,6.3132]
[1768745843959,3.10036175,142.68,142.63,6.3125]
[1768745844246,3.10036175,142.68,142.6,98.2162]
[1768745844247,3.25941645,142.71,142.6,98.2162]
[1768745845053,98.1275,142.74,142.62,6.3131]
[1768745845054,3.25941645,142.69,142.62,6.3131]
[1768745845949,3.25941645,142.69,142.63,6.3127]
[1768745846250,3.25941645,142.69,142.6,98.2188]
[1768745847253,3.25941645,142.69,142.63,6.3127]
[1768745848251,0.04437683,142.67,142.63,6.3127]
[1768745852355,0.04437683,142.67,142.62,6.3132]
[1768745853860,0.04437683,142.67,142.6,6.3139]
[1768745854362,0.04437683,142.67,142.59,98.2261]
[1768745854762,3.30379328,142.67,142.59,98.2261]
[1768745855360,3.30379328,142.67,142.58,98.2326]
[1768745855759,3.25941645,142.67,142.58,98.2326]
[1768745856270,3.25941645,142.67,142.56,98.2425]
[1768745856967,3.09995926,142.66,142.56,98.2425]
[1768745857172,0.04561807,142.63,142.56,98.2425]
[1768745857372,0.04561807,142.63,142.6,0.04832431]
[1768745862174,3.09995926,142.69,142.6,0.04832431]
[1768745862669,3.09995926,142.69,142.58,98.2314]
[1768745862870,3.09995926,142.69,142.61,6.3136]
[1768745863576,3.09995926,142.69,142.64,0.05067974]
[1768745864579,9.41025926,142.69,142.61,6.3136]
[1768745864776,3.09995926,142.68,142.61,6.3136]
[1768745865079,3.14536296,142.68,142.61,6.3136]
[1768745865780,3.14536296,142.68,142.59,6.3143]
[1768745866277,3.09995926,142.68,142.58,98.2314]
[1768745866673,0.05059975,142.65,142.58,98.2314]
[1768745867878,0.05059975,142.65,142.6,6.314]
[1768745868276,0.05059975,142.65,142.61,6.3136]
[1768745868481,3.09995926,142.68,142.61,0.04689251]
[1768745869979,3.09995926,142.68,142.62,6.3131]
[1768745870369,9.40945926,142.71,142.62,6.3131]
[1768745870565,3.09995926,142.7,142.62,6.3131]
[1768745871182,9.40975926,142.7,142.65,0.04495833]
[1768745872474,3.18888415,142.69,142.62,6.3131]
[1768745873376,3.14263416,142.68,142.6,6.3138]
[1768745874982,3.14263416,142.68,142.61,6.3135]
[1768745878386,3.14263416,142.66,142.57,98.241]
[1768745879784,3.14263416,142.66,142.6,6.314]
[1768745881884,3.14263416,142.68,142.62,0.04507384]
[1768745884688,3.14263416,142.68,142.62,6.35817384]
[1768745887481,3.14263416,142.71,142.63,6.3127]
[1768745887784,3.14263416,142.71,142.62,98.25207384]
[1768745887985,3.14263416,142.71,142.62,98.207]
[1768745888380,3.14263416,142.71,142.65,0.05259577]
[1768745888786,3.14263416,142.71,142.65,6.36439577]
[1768745897192,0.04759827,142.69,142.65,6.36439577]
[1768745898592,0.04759827,142.69,142.65,0.05259577]
[1768745906103,3.13231217,142.69,142.65,0.05259577]
[1768745909906,3.13231217,142.69,142.62,6.3131]
[1768745910409,3.13231217,142.69,142.63,6.3127]
[1768745910707,3.13231217,142.69,142.59,98.2246]
[1768745910907,3.0847139,142.69,142.59,98.2246]
[1768745911303,0.04668943,142.65,142.59,98.2246]
[1768745911501,3.0847139,142.69,142.63,6.3127]
[1768745912703,3.0847139,142.69,142.65,0.04693493]
[1768745912906,0.04784558,142.67,142.65,0.04693493]
[1768745915308,0.04784558,142.67,142.63,6.3127]
[1768745916410,3.27509596,142.67,142.61,6.3134]
[1768745916803,3.22725038,142.67,142.61,6.3134]
[1768745917198,0.05017861,142.65,142.63,0.04916527]
[1768745925419,3.22725038,142.67,142.63,0.04916527]
[1768745926813,0.05272149,142.66,142.63,0.04916527]
[1768745931825,3.22725038,142.69,142.63,6.36186527]
[1768745937930,3.22725038,142.69,142.63,0.04916527]
[1768745938133,3.09974112,142.67,142.63,0.04916527]
[1768745938328,3.09974112,142.67,142.61,6.3134]
[1768745939128,3.09974112,142.67,142.59,6.3143]
[1768745939534,3.0530979,142.67,142.59,6.3143]
[1768745940128,3.0530979,142.67,142.6,6.314]
[1768745941331,0.05290673,142.65,142.6,6.314]
[1768745941930,3.0530979,142.67,142.61,6.3135]
[1768745942320,3.0530979,142.67,142.61,6.36482629]
[1768745945035,3.0530979,142.67,142.62,6.313]
[1768745948124,3.0530979,142.67,142.61,0.05132629]
[1768745948532,3.0530979,142.67,142.61,6.36492629]
[1768745956444,3.0530979,142.67,142.62,6.313]
[1768745956743,3.0530979,142.69,142.61,0.05132629]
[1768745957238,3.0530979,142.69,142.63,6.3126]
[1768745957640,3.0530979,142.69,142.64,0.05314682]
[1768745959538,3.0530979,142.69,142.62,6.313]
[1768745961146,0.05146839,142.67,142.64,0.0505403]
[1768745961347,3.10456629,142.67,142.62,6.313]
[1768745962144,3.0530979,142.69,142.61,98.2127]
[1768745962341,3.03765527,142.67,142.56,98.2451]
[1768745962542,3.03765527,142.67,142.59,6.3144]
[1768745962743,3.03765527,142.67,142.56,98.2451]
[1768745963848,3.03765527,142.66,142.58,6.3148]
[1768745964148,3.03765527,142.66,142.54,98.2589]
[1768745964859,3.03765527,142.66,142.57,6.3153]
[1768745967450,6.3103,142.69,142.57,98.2365]
[1768745967641,3.03765527,142.7,142.6,0.04428073]
[1768745968147,3.03765527,142.69,142.61,6.3135]
[1768745968950,0.04958826,142.66,142.64,0.04879264]
[1768745985368,3.06008288,142.66,142.56,98.2466]
[1768745985866,3.01049462,142.66,142.56,98.2466]
[1768745986860,3.01049462,142.66,142.59,6.3144]
[1768745989682,0.04538435,142.64,142.59,6.3144]
[1768745989977,0.04538435,142.64,142.55,98.2501]
[1768745989978,3.05587897,142.64,142.57,6.3153]
[1768745990477,3.01049462,142.64,142.57,6.3153]
[1768745991364,0.05103354,142.62,142.57,6.3153]
[1768745993878,0.05103354,142.62,142.58,6.3149]
[1768745995877,0.05103354,142.62,142.56,6.3157]
[1768745997083,0.05103354,142.62,142.57,6.3152]
[1768746001174,0.05103354,142.62,142.58,6.3148]
[1768746001475,0.05103354,142.62,142.55,256.26]
[1768746002383,3.17734849,142.67,142.59,6.3144]
[1768746002770,3.17734849,142.67,142.55,256.26]
[1768746003379,3.17734849,142.67,142.56,98.2457]
[1768746004179,3.17734849,142.67,142.56,256.3]
[1768746005885,3.17734849,142.66,142.58,6.3149]
[1768746009387,3.17734849,142.71,142.56,256.3]
[1768746010689,3.17734849,142.7,142.61,6.3136]
[1768746012279,3.23132448,142.67,142.61,6.3136]
[1768746012582,3.23132448,142.67,142.64,0.04650021]
[1768746013289,3.23132448,142.67,142.61,6.3136]
[1768746013782,3.23132448,142.67,142.56,264.88375457]
[1768746014188,3.17734849,142.67,142.56,264.88375457]
[1768746014388,3.17734849,142.67,142.61,6.3135]
[1768746015391,3.17734849,142.67,142.56,8.58375457]
[1768746015587,3.17734849,142.67,142.57,256.34]
[1768746016086,3.17734849,142.67,142.56,8.58375457]
[1768746016386,3.17734849,142.67,142.57,256.34]
[1768746016591,3.17734849,142.67,142.56,256.34]
[1768746017894,3.17734849,142.67,142.58,6.3149]
[1768746018392,3.17734849,142.67,142.56,256.34]
[1768746019794,3.17734849,142.67,142.59,6.3145]
[1768746022198,3.17734849,142.67,142.6,6.3139]
[1768746025792,3.17734849,142.67,142.56,256.34]
[1768746025992,3.17734849,142.67,142.56,264.92375457]
[1768746031405,3.11700311,142.68,142.56,264.92375457]
[1768746034399,3.11700311,142.68,142.57,256.42]
[1768746034795,0.04873286,142.64,142.61,0.04665585]
[1768746038414,3.01867793,142.69,142.61,0.04665585]
[1768746038811,3.01867793,142.69,142.57,256.42]
[1768746039714,3.01867793,142.69,142.62,0.0447361]
[1768746047909,9.32897793,142.69,142.62,0.0447361]
[1768746048110,3.01867793,142.68,142.62,0.0447361]
[1768746050223,9.32947793,142.68,142.62,0.0447361]
[1768746050419,3.01867793,142.65,142.56,8.58375457]
[1768746055724,6.31,142.7,142.57,8.58375457]
[1768746056728,6.3091,142.72,142.57,8.58375457]
[1768746057728,3.21003678,142.71,142.57,8.58375457]
[1768746060318,3.21003678,142.7,142.57,8.58375457]
[1768746062930,3.21003678,142.69,142.57,8.58375457]
[1768746066322,3.21003678,142.68,142.57,8.58375457]
[1768746067434,3.21003678,142.68,142.61,0.0483199]
[1768746067827,0.05304709,142.64,142.61,0.0483199]
[1768746068020,3.21003678,142.67,142.61,0.0483199]
[1768746070721,3.21003678,142.67,142.55,8.58375457]
[1768746070722,3.21003678,142.64,142.54,171.66225042]
[1768746073139,3.21003678,142.64,142.55,8.58375457]
[1768746075241,3.21003678,142.64,142.58,0.04799889]
[1768746078840,3.21003678,142.63,142.53,8.58375457]
[1768746079142,3.21003678,142.61,142.52,8.58375457]
[1768746079350,3.21003678,142.61,142.51,8.58375457]
[1768746080447,0.04843192,142.57,142.51,8.58375457]
[1768746080746,3.21003678,142.6,142.51,8.58375457]
[1768746081339,3.21003678,142.6,142.5,8.58375457]
[1768746083752,3.21003678,142.6,142.48,13.07531828]
[1768746083753,3.21003678,142.6,142.48,256.7]
[1768746085050,3.21003678,142.6,142.47,163.77507559]
[1768746096766,9.52423678,142.6,142.47,163.77507559]
[1768746097063,3.24977554,142.59,142.47,163.77507559]
[1768746098364,3.24977554,142.58,142.47,163.77507559]
[1768746098967,3.24977554,142.58,142.45,256.84]
[1768746103266,3.24977554,142.58,142.42,15.59575457]
[1768746103562,3.24977554,142.58,142.43,256.9]
[1768746103868,3.24977554,142.58,142.42,15.59575457]
[1768746104168,3.24977554,142.58,142.44,256.9]
[1768746104961,0.0537821,142.52,142.44,256.9]
[1768746105162,0.0537821,142.52,142.5,0.04726893]
[1768746105364,3.24977554,142.55,142.5,0.04726893]
[1768746105662,3.24977554,142.55,142.44,256.9]
[1768746106570,3.24977554,142.55,142.48,0.0480936]
[1768746108880,0.04628077,142.53,142.48,0.0480936]
[1768746122799,3.21718339,142.53,142.48,0.0480936]
[1768746125704,3.21718339,142.53,142.43,8.58375457]
[1768746126102,3.17090262,142.53,142.43,8.58375457]
[1768746128004,3.17090262,142.53,142.42,8.58375457]
[1768746128205,3.17090262,142.53,142.47,0.04539589]
[1768746135003,3.17090262,142.56,142.47,0.04539589]
[1768746135605,3.17090262,142.56,142.4,8.58375457]
[1768746136208,0.04891546,142.49,142.41,8.58375457]
[1768746137111,0.04891546,142.49,142.4,8.58375457]
[1768746137607,3.17090262,142.52,142.41,8.58375457]
[1768746137805,3.17090262,142.52,142.4,8.58375457]
[1768746138211,3.17090262,142.52,142.45,0.05397696]
[1768746143922,3.17090262,142.52,142.47,6.3197]
[1768746144221,3.17090262,142.52,142.46,98.3146]
[1768746144719,3.17090262,142.52,142.48,0.04737808]
[1768746146525,2.62e-06,142.52,142.48,0.04737808]
[1768746150827,2.62e-06,142.52,142.5,6.3184]
[1768746151025,2.62e-06,142.52,142.48,0.04737808]
[1768746152028,2.62e-06,142.52,142.49,6.3189]
[1768746152231,2.62e-06,142.52,142.48,0.04737808]
[1768746157425,2.73682441,142.55,142.48,0.04737808]
[1768746157625,0.04503169,142.51,142.48,0.04737808]
[1768746173836,0.04503169,142.51,142.48,6.36667808]
[1768746180943,0.04503169,142.51,142.48,0.04737808]
[1768746181143,0.04503169,142.51,142.46,3.08525204]
[1768746184954,2.73769969,142.5,142.44,3.08525204]
[1768746185252,0.04503169,142.51,142.44,3.08525204]
[1768746189040,354.97967591,142.61,142.44,3.08525204]
[1768746189041,2.73769969,142.55,142.44,3.08525204]
[1768746189246,2.78273138,142.59,142.44,3.08525204]
[1768746189553,262.58,142.6,142.44,3.08525204]
[1768746189554,2.78273138,142.56,142.44,3.08525204]
[1768746191758,2.78273138,142.56,142.49,3.08525204]
[1768746192653,2.78273138,142.56,142.48,6.3187]
[1768746193658,2.78273138,142.56,142.48,9.40395204]
[1768746196159,2.78273138,142.56,142.49,3.08525204]
[1768746200157,2.78273138,142.56,142.5,3.08525204]
[1768746201062,2.78273138,142.56,142.52,0.04430658]
[1768746211574,2.78273138,142.56,142.5,3.08525204]
[1768746211875,0.0474588,142.55,142.5,3.08525204]
[1768746212469,2.8293491,142.55,142.5,3.08525204]
[1768746212665,2.8293491,142.55,142.47,9.34504017]
[1768746213176,2.7818903,142.55,142.47,9.34504017]
[1768746213369,2.7818903,142.55,142.48,3.02584017]
[1768746213569,0.05157651,142.52,142.48,3.02584017]
[1768746218575,2.7818903,142.55,142.48,3.02584017]
[1768746218877,2.7818903,142.55,142.5,3.18624791]
[1768746221475,0.04725823,142.54,142.5,3.18624791]
[1768746229870,9.14817388,142.57,142.5,3.18624791]
[1768746231177,9.14817388,142.57,142.52,0.0480331]
[1768746234771,9.14817388,142.57,142.52,3.16084636]
[1768746234977,6.3149,142.57,142.52,3.16084636]
[1768746237179,9.19390049,142.59,142.52,3.16084636]
[1768746237372,2.87960049,142.59,142.52,3.16084636]
[1768746238779,6.3145,142.58,142.52,3.16084636]
[1768746242384,9.19410049,142.58,142.52,3.16084636]
[1768746253986,2.87960049,142.58,142.52,3.16084636]
[1768746260291,6.314,142.59,142.52,3.16084636]
[1768746260589,265.45960049,142.6,142.52,3.16084636]
[1768746261094,262.58,142.6,142.52,3.16084636]
[1768746265290,0.04681684,142.57,142.52,3.16084636]
[1768746266999,2.87851085,142.61,142.52,3.16084636]
[1768746267392,2.87851085,142.61,142.52,3.11281326]
[1768746268092,2.87851085,142.61,142.55,0.04590796]
[1768746268392,2.92532769,142.63,142.55,3.28771899]
[1768746272504,2.92532769,142.63,142.55,9.60331899]
[1768746272703,2.92532769,142.57,142.48,3.24181103]
[1768746273996,2.92532769,142.57,142.51,0.0519791]
[1768746274802,2.92532769,142.57,142.51,3.29379013]
[1768746279805,9.23970188,142.6,142.51,3.29379013]
[1768746280008,2.92600188,142.59,142.51,3.29379013]
[1768746280305,2.92600188,142.59,142.51,3.24181103]
[1768746280700,2.92600188,142.59,142.54,0.04841291]
[1768746281702,2.92600188,142.59,142.52,3.29938076]
[1768746284103,2.92600188,142.58,142.54,0.05172339]
[1768746284302,360.7884,142.61,142.49,3.29938076]
[1768746284303,2.92600188,142.56,142.49,3.29938076]
[1768746285606,0.04501953,142.54,142.49,3.29938076]
[1768746298220,9.24045248,142.58,142.49,3.29938076]
[1768746298423,9.24045248,142.58,142.51,3.0768922]
[1768746299217,2.92585248,142.58,142.51,3.0768922]
[1768746306324,6.3141,142.59,142.44,20.09431828]
[1768746306325,2.97087201,142.55,142.44,3.0768922]
[1768746316733,2.97087201,142.55,142.41,13.07531828]
[1768746316734,2.97087201,142.55,142.46,3.0768922]
[1768746321831,2.97087201,142.54,142.43,3.0768922]
[1768746326238,6.316,142.55,142.4,7.019]
[1768746326239,2.97420707,142.51,142.4,3.32790751]
[1768746327938,2.97420707,142.49,142.4,3.32790751]
[1768746329246,2.97420707,142.48,142.4,3.32790751]
[1768746330443,2.97420707,142.47,142.4,3.32790751]
[1768746331142,2.97420707,142.46,142.4,3.32790751]
[1768746332136,2.97420707,142.46,142.32,9.80562178]
[1768746332340,2.97420707,142.45,142.34,3.32790751]
[1768746334343,2.97420707,142.45,142.38,3.3724685]
[1768746342951,2.97847826,142.47,142.38,3.3724685]
[1768746343352,2.97847826,142.47,142.38,3.32790751]
[1768746344461,2.97847826,142.49,142.38,3.32790751]
[1768746346163,2.97847826,142.49,142.42,3.14997745]
[1768746352255,0.05100787,142.47,142.42,3.14997745]
[1768746353064,3.02668263,142.47,142.42,0.04494747]
[1768746360974,3.02668263,142.47,142.38,3.0361851]
[1768746361577,2.97567476,142.47,142.38,3.0361851]
[1768746362578,0.04571512,142.44,142.38,3.0361851]
[1768746363575,2.97567476,142.43,142.34,3.0361851]
[1768746364373,0.05093928,142.4,142.34,3.0361851]
[1768746367378,0.05093928,142.4,142.36,0.04715429]
[1768746370787,3.02661404,142.4,142.36,0.04715429]
[1768746371283,0.05093928,142.4,142.36,0.04715429]
[1768746374689,3.02661404,142.4,142.36,0.04715429]
[1768746377189,3.02661404,142.4,142.36,0.00245397]
[1768746378188,2.97567476,142.39,142.36,0.00245397]
[1768746379687,2.97567476,142.39,142.27,164.36785552]
[1768746379688,2.97567476,142.39,142.31,3.0361851]
[1768746380084,2.97567476,142.38,142.31,3.0361851]
[1768746381187,0.0459149,142.36,142.31,3.0361851]
[1768746389199,3.02501642,142.36,142.28,3.15668777]
[1768746389593,2.97910152,142.36,142.28,3.15668777]
[1768746389794,2.97910152,142.36,142.25,3.15668777]
[1768746390000,0.04592089,142.33,142.25,3.15668777]
[1768746393002,3.02502241,142.33,142.25,3.15668777]
[1768746395514,0.04592089,142.33,142.25,3.15668777]
[1768746396101,3.02541932,142.33,142.25,3.15668777]
[1768746402518,0.04592089,142.33,142.25,3.15668777]
[1768746402815,0.04592089,142.33,142.28,3.13516057]
[1768746403211,2.97949843,142.35,142.28,3.13516057]
[1768746403618,0.05005864,142.32,142.28,3.13516057]
[1768746419235,3.02817275,142.42,142.28,3.13516057]
[1768746419531,3.02817275,142.4,142.28,3.13516057]
[1768746419736,8.25609522,142.39,142.28,3.08406248]
[1768746420031,3.02817275,142.39,142.28,3.08406248]
[1768746420523,0.0482553,142.35,142.28,3.08406248]
[1768746421639,3.02817275,142.39,142.28,3.08406248]
[1768746423037,3.02817275,142.39,142.33,3.31681346]
[1768746429446,3.07642805,142.41,142.33,3.31681346]
[1768746429734,5.20682858,142.4,142.33,3.31681346]
[1768746429939,3.07642805,142.41,142.33,3.31681346]
[1768746430240,8.28297051,142.4,142.35,0.04621593]
[1768746430441,3.07642805,142.4,142.35,0.04621593]
[1768746430639,3.07642805,142.4,142.33,3.31681346]
[1768746431041,0.05003832,142.39,142.36,0.04607174]
[1768746431540,3.07642805,142.4,142.34,3.31681346]
[1768746431942,3.07642805,142.4,142.36,0.04798892]
[1768746432243,3.07642805,142.43,142.36,3.36480238]
[1768746432443,5.20676785,142.42,142.36,3.31681346]
[1768746432738,5.20676785,142.41,142.38,0.04826328]
[1768746432939,3.07642805,142.43,142.38,0.04826328]
[1768746433240,8.2831959,142.42,142.38,0.04826328]
[1768746433439,3.07642805,142.42,142.38,0.04826328]
[1768746435734,244.52825355,142.44,142.38,0.04826328]
[1768746435939,8.27955036,142.43,142.38,0.04826328]
[1768746436139,5.20312231,142.42,142.38,0.04826328]
[1768746436339,8.27955036,142.42,142.38,0.04826328]
[1768746436542,3.07642805,142.42,142.38,0.04826328]
[1768746450851,244.52525299,142.44,142.38,0.04826328]
[1768746451646,244.52525299,142.44,142.38,3.25852681]
[1768746452054,0.0442381,142.42,142.38,3.25852681]
[1768746454453,0.0442381,142.42,142.38,0.04826328]
[1768746454655,3.11766559,142.42,142.38,0.04826328]
[1768746457956,0.0442381,142.42,142.38,3.22641852]
[1768746476168,3.07460364,142.45,142.38,3.22641852]
[1768746483677,3.07406128,142.5,142.38,3.22641852]
[1768746483878,3.07406128,142.48,142.38,3.22641852]
[1768746484079,8.27108575,142.47,142.38,3.17815524]
[1768746484372,3.07406128,142.47,142.42,0.05303563]
[1768746484871,3.07406128,142.47,142.4,3.03858359]
[1768746485176,3.07406128,142.47,142.43,0.04960618]
[1768746486771,3.07406128,142.47,142.43,0.00536808]
[1768746489279,5.19969267,142.46,142.43,0.00536808]
[1768746489583,3.07406128,142.46,142.43,0.00536808]
[1768746495782,3.07406128,142.5,142.43,0.00536808]
[1768746496083,3.07406128,142.48,142.43,0.00536808]
[1768746496381,8.28162909,142.47,142.43,0.00536808]
[1768746496582,5.20756781,142.46,142.43,0.00536808]